[Event "Early-Titled-Tuesday-Blitz-May-28-2024"]
[Site "Chess.com"]
[Date "2024.05.28"]
[Round "5"]
[White "KubaGepard"]
[Black "SilverCityIndigo"]
[Result "1-0"]
[WhiteElo "2577"]
[BlackElo "2430"]
[TimeControl "180+1"]
[EndTime "8:55:38 PDT"]
[Termination "KubaGepard won on time"]

1. d4 {[%clk 0:03:00.9]} 1... d5 {[%clk 0:02:13.2]} 2. c4 {[%clk 0:02:56.8]}
2... e6 {[%clk 0:02:12.4]} 3. Nc3 {[%clk 0:02:56]} 3... c6 {[%clk 0:02:12.3]} 4.
e4 {[%clk 0:02:52.4]} 4... dxe4 {[%clk 0:02:11.7]} 5. Nxe4 {[%clk 0:02:53.3]}
5... Bb4+ {[%clk 0:02:12.2]} 6. Nc3 {[%clk 0:02:53.2]} 6... e5 {[%clk
0:02:11.7]} 7. Be3 {[%clk 0:02:50.4]} 7... exd4 {[%clk 0:01:44.1]} 8. Qxd4
{[%clk 0:02:51.3]} 8... Qxd4 {[%clk 0:01:36.6]} 9. Bxd4 {[%clk 0:02:52.2]} 9...
f6 {[%clk 0:01:31.7]} 10. a3 {[%clk 0:02:45.3]} 10... Ba5 {[%clk 0:01:26.6]} 11.
O-O-O {[%clk 0:02:43.7]} 11... Ne7 {[%clk 0:01:22.9]} 12. Nf3 {[%clk 0:02:42.8]}
12... Bg4 {[%clk 0:01:16.9]} 13. Be2 {[%clk 0:02:40.1]} 13... Nd7 {[%clk
0:01:07.9]} 14. h3 {[%clk 0:02:39.1]} 14... Bh5 {[%clk 0:01:07.2]} 15. Rhe1
{[%clk 0:02:35.8]} 15... Bb6 {[%clk 0:00:48.3]} 16. Bxb6 {[%clk 0:02:34.1]}
16... axb6 {[%clk 0:00:46.6]} 17. Nd4 {[%clk 0:02:33.7]} 17... Bf7 {[%clk
0:00:33.7]} 18. f4 {[%clk 0:02:30.9]} 18... Kf8 {[%clk 0:00:30.2]} 19. Bg4
{[%clk 0:02:26.7]} 19... Nc5 {[%clk 0:00:29.8]} 20. Be6 {[%clk 0:02:19.9]} 20...
Bxe6 {[%clk 0:00:14.2]} 21. Nxe6+ {[%clk 0:02:19.2]} 21... Nxe6 {[%clk
0:00:15.1]} 22. Rxe6 {[%clk 0:02:19.2]} 22... Kf7 {[%clk 0:00:15.7]} 23. Rde1
{[%clk 0:02:18.7]} 23... Rhe8 {[%clk 0:00:15.5]} 24. Kc2 {[%clk 0:02:13.7]}
24... Ng6 {[%clk 0:00:13.9]} 25. Rxe8 {[%clk 0:02:13.3]} 25... Rxe8 {[%clk
0:00:14.2]} 26. Rxe8 {[%clk 0:02:13.4]} 26... Kxe8 {[%clk 0:00:15.1]} 27. g3
{[%clk 0:02:12.8]} 27... Kd7 {[%clk 0:00:15.1]} 28. Na4 {[%clk 0:02:12.7]} 28...
Kc7 {[%clk 0:00:14.9]} 29. Kd3 {[%clk 0:02:13.2]} 29... Ne7 {[%clk 0:00:15]} 30.
Ke4 {[%clk 0:02:12.7]} 30... b5 {[%clk 0:00:14.6]} 31. cxb5 {[%clk 0:02:12.9]}
31... cxb5 {[%clk 0:00:15.4]} 32. Nc3 {[%clk 0:02:12.9]} 32... Kc6 {[%clk
0:00:16]} 33. b4 {[%clk 0:02:08.9]} 33... g6 {[%clk 0:00:15.5]} 34. g4 {[%clk
0:02:07.9]} 34... Nc8 {[%clk 0:00:15.7]} 35. Kd4 {[%clk 0:02:04.4]} 35... Nd6
{[%clk 0:00:14.2]} 36. Nd5 {[%clk 0:01:57.1]} 36... f5 {[%clk 0:00:08.3]} 37. g5
{[%clk 0:01:57.3]} 37... Nc4 {[%clk 0:00:07]} 38. Nf6 {[%clk 0:01:57.3]} 38...
Nxa3 {[%clk 0:00:06.8]} 39. Nxh7 {[%clk 0:01:57.4]} 39... Nc2+ {[%clk
0:00:04.1]} 40. Kc3 {[%clk 0:01:56.4]} 40... Ne3 {[%clk 0:00:04.6]} 41. Nf8
{[%clk 0:01:51.1]} 41... Nd5+ {[%clk 0:00:04.6]} 42. Kd4 {[%clk 0:01:51.4]}
42... Nxf4 {[%clk 0:00:05.5]} 43. h4 {[%clk 0:01:51.7]} 43... Kd6 {[%clk
0:00:04.3]} 44. Ke3 {[%clk 0:01:33.8]} 44... Ne6 {[%clk 0:00:02.8]} 45. Nxg6
{[%clk 0:01:32]} 45... Kd5 {[%clk 0:00:01.3]} 46. Nf4+ {[%clk 0:01:31.5]} 46...
Ke5 {[%clk 0:00:01.5]} 47. Nxe6 {[%clk 0:01:31.4]} 47... Kxe6 {[%clk 0:00:02.4]}
48. Kf4 {[%clk 0:01:31.6]} 1-0

[Event "Early-Titled-Tuesday-Blitz-May-28-2024"]
[Site "Chess.com"]
[Date "2024.05.28"]
[Round "5"]
[White "ASKA538"]
[Black "AnaKuchava"]
[Result "1-0"]
[WhiteElo "2379"]
[BlackElo "2185"]
[TimeControl "180+1"]
[EndTime "8:55:47 PDT"]
[Termination "ASKA538 won by resignation"]

1. e4 {[%clk 0:03:00.9]} 1... c5 {[%clk 0:02:59.5]} 2. d4 {[%clk 0:02:56.3]}
2... cxd4 {[%clk 0:02:57.3]} 3. c3 {[%clk 0:02:56.6]} 3... Nf6 {[%clk
0:02:56.5]} 4. e5 {[%clk 0:02:55.4]} 4... Nd5 {[%clk 0:02:56.5]} 5. Nf3 {[%clk
0:02:54.5]} 5... Nc6 {[%clk 0:02:55.2]} 6. cxd4 {[%clk 0:02:54.3]} 6... d6
{[%clk 0:02:51.3]} 7. h3 {[%clk 0:02:53.1]} 7... dxe5 {[%clk 0:02:44.3]} 8. dxe5
{[%clk 0:02:52.2]} 8... e6 {[%clk 0:02:42.3]} 9. Bd3 {[%clk 0:02:49.1]} 9...
Bb4+ {[%clk 0:02:24]} 10. Bd2 {[%clk 0:02:34.8]} 10... Nf4 {[%clk 0:02:23]} 11.
Bf1 {[%clk 0:02:12.9]} 11... Nd3+ {[%clk 0:01:26.9]} 12. Bxd3 {[%clk 0:02:08.8]}
12... Qxd3 {[%clk 0:01:27.8]} 13. Bxb4 {[%clk 0:02:02.6]} 13... Qe4+ {[%clk
0:01:11.8]} 14. Qe2 {[%clk 0:01:51.4]} 14... Qxb4+ {[%clk 0:01:04]} 15. Nc3
{[%clk 0:01:44.6]} 15... O-O {[%clk 0:01:00]} 16. O-O {[%clk 0:01:44.1]} 16...
Bd7 {[%clk 0:00:57.2]} 17. Rfd1 {[%clk 0:01:41.7]} 17... Rfd8 {[%clk 0:00:54.2]}
18. a3 {[%clk 0:01:41.1]} 18... Qe7 {[%clk 0:00:41.6]} 19. Nb5 {[%clk
0:01:37.3]} 19... Be8 {[%clk 0:00:33.5]} 20. Nd6 {[%clk 0:01:26.8]} 20... Rab8
{[%clk 0:00:19.4]} 21. Rd2 {[%clk 0:01:23.5]} 21... f6 {[%clk 0:00:19.3]} 22.
exf6 {[%clk 0:01:15.9]} 22... Qxf6 {[%clk 0:00:12.1]} 23. Rad1 {[%clk
0:01:12.4]} 23... Bg6 {[%clk 0:00:05.5]} 24. Qb5 {[%clk 0:00:55.8]} 24... Ne7
{[%clk 0:00:02.9]} 25. Ne4 {[%clk 0:00:52.7]} 25... Rxd2 {[%clk 0:00:03.8]} 26.
Nxf6+ {[%clk 0:00:52.2]} 26... gxf6 {[%clk 0:00:04.2]} 27. Rxd2 {[%clk
0:00:51.1]} 27... Be8 {[%clk 0:00:05.1]} 28. Qc5 {[%clk 0:00:48.9]} 28... Nc6
{[%clk 0:00:04.9]} 29. Qd6 {[%clk 0:00:44.6]} 29... Rd8 {[%clk 0:00:04.6]} 30.
Qxd8 {[%clk 0:00:44.6]} 30... Nxd8 {[%clk 0:00:03.8]} 31. Rxd8 {[%clk
0:00:45.5]} 31... Kf7 {[%clk 0:00:01.2]} 32. Rb8 {[%clk 0:00:43.5]} 32... Ke7
{[%clk 0:00:02.1]} 33. Rxb7+ {[%clk 0:00:43.4]} 1-0

[Event "Early-Titled-Tuesday-Blitz-May-28-2024"]
[Site "Chess.com"]
[Date "2024.05.28"]
[Round "5"]
[White "Mihajlovskij"]
[Black "andbluesky"]
[Result "1-0"]
[WhiteElo "2257"]
[BlackElo "1764"]
[TimeControl "180+1"]
[EndTime "8:55:49 PDT"]
[Termination "Mihajlovskij won by resignation"]

1. e4 {[%clk 0:02:55.7]} 1... e5 {[%clk 0:02:58.8]} 2. Nf3 {[%clk 0:02:55.6]}
2... Nc6 {[%clk 0:02:58.9]} 3. Bb5 {[%clk 0:02:55.4]} 3... a6 {[%clk 0:02:54.5]}
4. Ba4 {[%clk 0:02:52.5]} 4... Nf6 {[%clk 0:02:53.7]} 5. O-O {[%clk 0:02:52.1]}
5... Be7 {[%clk 0:02:45.7]} 6. Re1 {[%clk 0:02:47]} 6... b5 {[%clk 0:02:44.8]}
7. Bb3 {[%clk 0:02:44.8]} 7... O-O {[%clk 0:02:41.3]} 8. c3 {[%clk 0:02:38.8]}
8... d5 {[%clk 0:02:39.4]} 9. exd5 {[%clk 0:02:34.8]} 9... Nxd5 {[%clk 0:02:39]}
10. Nxe5 {[%clk 0:02:35.4]} 10... Nxe5 {[%clk 0:02:35.8]} 11. Rxe5 {[%clk
0:02:36.3]} 11... c6 {[%clk 0:02:35.4]} 12. d4 {[%clk 0:02:35.5]} 12... Bd6
{[%clk 0:02:34.3]} 13. Re1 {[%clk 0:02:32.6]} 13... Qh4 {[%clk 0:02:30.5]} 14.
g3 {[%clk 0:02:31.3]} 14... Qh3 {[%clk 0:02:29.6]} 15. Be3 {[%clk 0:02:30.6]}
15... Bg4 {[%clk 0:02:28.6]} 16. Qd3 {[%clk 0:02:29.9]} 16... Rae8 {[%clk
0:02:19.5]} 17. Nd2 {[%clk 0:02:23.8]} 17... Kh8 {[%clk 0:02:06.1]} 18. a4
{[%clk 0:02:13.6]} 18... f5 {[%clk 0:02:01.3]} 19. Bxd5 {[%clk 0:02:04.5]} 19...
cxd5 {[%clk 0:02:01]} 20. f4 {[%clk 0:02:03.8]} 20... h5 {[%clk 0:01:45.5]} 21.
axb5 {[%clk 0:02:01.2]} 21... axb5 {[%clk 0:01:41]} 22. Ra6 {[%clk 0:02:00.6]}
22... Bc7 {[%clk 0:01:19.6]} 23. Qxb5 {[%clk 0:01:43.7]} 23... h4 {[%clk
0:00:36.1]} 24. Qf1 {[%clk 0:01:42.1]} 24... hxg3 {[%clk 0:00:31.7]} 25. Qxh3+
{[%clk 0:01:41.5]} 25... Bxh3 {[%clk 0:00:29.9]} 26. hxg3 {[%clk 0:01:41.5]}
26... Bg4 {[%clk 0:00:26.1]} 27. Kf2 {[%clk 0:01:40.6]} 27... Kg8 {[%clk
0:00:25]} 28. b4 {[%clk 0:01:38.7]} 28... Ra8 {[%clk 0:00:20.9]} 29. Rea1 {[%clk
0:01:37.2]} 29... Rxa6 {[%clk 0:00:19.7]} 30. Rxa6 {[%clk 0:01:38.1]} 30... g5
{[%clk 0:00:13.8]} 31. Nb3 {[%clk 0:01:34.2]} 31... gxf4 {[%clk 0:00:11.8]} 32.
Bxf4 {[%clk 0:01:33.8]} 32... Bxf4 {[%clk 0:00:10.3]} 33. gxf4 {[%clk
0:01:34.7]} 33... Re8 {[%clk 0:00:07.5]} 34. Nc5 {[%clk 0:01:33.6]} 34... Re2+
{[%clk 0:00:06.7]} 35. Kg3 {[%clk 0:01:32.5]} 35... Re3+ {[%clk 0:00:06.2]} 36.
Kh4 {[%clk 0:01:32.4]} 36... Rh3+ {[%clk 0:00:04.8]} 37. Kg5 {[%clk 0:01:32.1]}
37... Rh5+ {[%clk 0:00:04.7]} 38. Kf6 {[%clk 0:01:31.1]} 38... Rh6+ {[%clk
0:00:04.9]} 39. Ke5 {[%clk 0:01:31]} 39... Rh1 {[%clk 0:00:02.9]} 40. Kxd5
{[%clk 0:01:25.7]} 40... Bf3+ {[%clk 0:00:02]} 41. Kd6 {[%clk 0:01:24.7]} 41...
Rh6+ {[%clk 0:00:01.4]} 42. Kc7 {[%clk 0:01:24.5]} 42... Rxa6 {[%clk 0:00:01.1]}
43. Nxa6 {[%clk 0:01:24.2]} 43... Kf7 {[%clk 0:00:01]} 44. b5 {[%clk 0:01:22.4]}
44... Ke7 {[%clk 0:00:01.6]} 45. b6 {[%clk 0:01:22.2]} 45... Be4 {[%clk
0:00:02]} 46. b7 {[%clk 0:01:21.9]} 46... Bxb7 {[%clk 0:00:01.5]} 47. Kxb7
{[%clk 0:01:21.9]} 1-0

[Event "Early-Titled-Tuesday-Blitz-May-28-2024"]
[Site "Chess.com"]
[Date "2024.05.28"]
[Round "5"]
[White "AlbusSevresPotter"]
[Black "smilingice"]
[Result "1-0"]
[WhiteElo "2554"]
[BlackElo "2380"]
[TimeControl "180+1"]
[EndTime "8:55:51 PDT"]
[Termination "AlbusSevresPotter won by checkmate"]

1. e4 {[%clk 0:02:55.2]} 1... c5 {[%clk 0:02:55.3]} 2. Nf3 {[%clk 0:02:54.9]}
2... d6 {[%clk 0:02:50.5]} 3. d4 {[%clk 0:02:54.7]} 3... cxd4 {[%clk 0:02:50.3]}
4. Nxd4 {[%clk 0:02:55.6]} 4... Nf6 {[%clk 0:02:46.8]} 5. Nc3 {[%clk 0:02:56]}
5... a6 {[%clk 0:02:46.5]} 6. Be3 {[%clk 0:02:55.8]} 6... e5 {[%clk 0:02:45.9]}
7. Nb3 {[%clk 0:02:56.1]} 7... Be6 {[%clk 0:02:45.2]} 8. f3 {[%clk 0:02:56.7]}
8... Nbd7 {[%clk 0:02:44.6]} 9. Qd2 {[%clk 0:02:57.3]} 9... h5 {[%clk
0:02:44.5]} 10. Nd5 {[%clk 0:02:56.9]} 10... Bxd5 {[%clk 0:02:41.9]} 11. exd5
{[%clk 0:02:54.8]} 11... Be7 {[%clk 0:02:28]} 12. Be2 {[%clk 0:02:52]} 12... Rc8
{[%clk 0:02:27.1]} 13. c4 {[%clk 0:02:36.1]} 13... h4 {[%clk 0:02:12.1]} 14. Na5
{[%clk 0:02:32.9]} 14... Qc7 {[%clk 0:02:00.1]} 15. b4 {[%clk 0:02:30.7]} 15...
Nh5 {[%clk 0:01:44.5]} 16. O-O {[%clk 0:02:08.1]} 16... f5 {[%clk 0:01:36.3]}
17. Rac1 {[%clk 0:01:32.6]} 17... f4 {[%clk 0:01:31.6]} 18. Bf2 {[%clk
0:01:31.8]} 18... Ng3 {[%clk 0:01:31.5]} 19. Rfd1 {[%clk 0:01:20.2]} 19... e4
{[%clk 0:01:19]} 20. hxg3 {[%clk 0:01:05.8]} 20... hxg3 {[%clk 0:01:03.2]} 21.
Bd4 {[%clk 0:00:58.4]} 21... e3 {[%clk 0:01:02.9]} 22. Qd3 {[%clk 0:00:44]}
22... Bf6 {[%clk 0:01:01.5]} 23. Qe4+ {[%clk 0:00:35.1]} 23... Be5 {[%clk
0:00:53.4]} 24. c5 {[%clk 0:00:15.9]} 24... Qd8 {[%clk 0:00:51.2]} 25. Qg6+
{[%clk 0:00:15.1]} 25... Kf8 {[%clk 0:00:49.5]} 26. Qf5+ {[%clk 0:00:15.2]}
26... Kg8 {[%clk 0:00:47.5]} 27. cxd6 {[%clk 0:00:15.1]} 27... Qh4 {[%clk
0:00:41.4]} 28. Rxc8+ {[%clk 0:00:15]} 28... Nf8 {[%clk 0:00:31.8]} 29. Rxf8#
{[%clk 0:00:15.9]} 1-0

[Event "Early-Titled-Tuesday-Blitz-May-28-2024"]
[Site "Chess.com"]
[Date "2024.05.28"]
[Round "5"]
[White "Peng_Li-Min"]
[Black "LLariMarc"]
[Result "0-1"]
[WhiteElo "2761"]
[BlackElo "2505"]
[TimeControl "180+1"]
[EndTime "8:55:53 PDT"]
[Termination "LLariMarc won by checkmate"]

1. e4 {[%clk 0:03:00.9]} 1... e6 {[%clk 0:02:56.8]} 2. d4 {[%clk 0:03:00.1]}
2... d5 {[%clk 0:02:57.7]} 3. exd5 {[%clk 0:03:00.9]} 3... exd5 {[%clk
0:02:58.6]} 4. Nf3 {[%clk 0:03:00.7]} 4... Nf6 {[%clk 0:02:57.2]} 5. Bd3 {[%clk
0:03:01.1]} 5... Bd6 {[%clk 0:02:54.9]} 6. O-O {[%clk 0:03:02]} 6... O-O {[%clk
0:02:54.9]} 7. Bg5 {[%clk 0:03:02.4]} 7... Bg4 {[%clk 0:02:51.8]} 8. Nbd2 {[%clk
0:03:02.7]} 8... Nbd7 {[%clk 0:02:51]} 9. c4 {[%clk 0:03:02.2]} 9... c6 {[%clk
0:02:42.5]} 10. c5 {[%clk 0:03:02.3]} 10... Bc7 {[%clk 0:02:42.4]} 11. Qc2
{[%clk 0:03:03.2]} 11... h6 {[%clk 0:02:41.5]} 12. Bh4 {[%clk 0:03:03.7]} 12...
Re8 {[%clk 0:02:37.9]} 13. Rfe1 {[%clk 0:03:04.3]} 13... Rxe1+ {[%clk
0:02:36.3]} 14. Rxe1 {[%clk 0:03:05.2]} 14... Qf8 {[%clk 0:02:36.2]} 15. Bg3
{[%clk 0:02:21.9]} 15... Bxg3 {[%clk 0:02:35.5]} 16. hxg3 {[%clk 0:02:22.8]}
16... Re8 {[%clk 0:02:33.5]} 17. Qc1 {[%clk 0:02:20.9]} 17... Bxf3 {[%clk
0:02:32.1]} 18. gxf3 {[%clk 0:02:19.3]} 18... Rxe1+ {[%clk 0:02:32.1]} 19. Qxe1
{[%clk 0:02:20]} 19... Qe8 {[%clk 0:02:28.9]} 20. Qd1 {[%clk 0:02:09.5]} 20...
g6 {[%clk 0:02:25.4]} 21. Kg2 {[%clk 0:02:09.2]} 21... Kg7 {[%clk 0:02:25.2]}
22. b4 {[%clk 0:02:09.7]} 22... a6 {[%clk 0:02:24]} 23. a4 {[%clk 0:02:08.9]}
23... h5 {[%clk 0:02:21.4]} 24. Nb3 {[%clk 0:02:04.4]} 24... h4 {[%clk
0:02:13.7]} 25. Na5 {[%clk 0:02:01.9]} 25... hxg3 {[%clk 0:02:12.1]} 26. fxg3
{[%clk 0:02:02.2]} 26... Qe3 {[%clk 0:02:02.2]} 27. Bf1 {[%clk 0:01:26.5]} 27...
Qc3 {[%clk 0:01:21.4]} 28. Nxb7 {[%clk 0:01:17.3]} 28... Qxb4 {[%clk 0:01:21.4]}
29. Nd6 {[%clk 0:01:18]} 29... a5 {[%clk 0:01:17.5]} 30. g4 {[%clk 0:01:14.1]}
30... Qc3 {[%clk 0:01:10.9]} 31. Qe2 {[%clk 0:01:02.8]} 31... Qxd4 {[%clk
0:01:06.6]} 32. Qe7 {[%clk 0:01:02.9]} 32... Ne5 {[%clk 0:01:03.6]} 33. g5
{[%clk 0:01:00.1]} 33... Nh5 {[%clk 0:01:01.1]} 34. Ne8+ {[%clk 0:00:59.6]}
34... Kh7 {[%clk 0:00:49.6]} 35. Nf6+ {[%clk 0:00:44.5]} 35... Nxf6 {[%clk
0:00:48.7]} 36. Qxf6 {[%clk 0:00:45]} 36... Qd2+ {[%clk 0:00:45.3]} 37. Kh1
{[%clk 0:00:43.5]} 37... Qe1 {[%clk 0:00:44.2]} 38. Kg2 {[%clk 0:00:42.6]} 38...
d4 {[%clk 0:00:42.4]} 39. f4 {[%clk 0:00:42.8]} 39... Qe4+ {[%clk 0:00:37.4]}
40. Kg1 {[%clk 0:00:43.1]} 40... Nf3+ {[%clk 0:00:36.6]} 41. Kf2 {[%clk
0:00:38.6]} 41... Qe3+ {[%clk 0:00:33.8]} 42. Kg2 {[%clk 0:00:37.8]} 42... Ne1+
{[%clk 0:00:28.6]} 43. Kh2 {[%clk 0:00:37.7]} 43... Qf2+ {[%clk 0:00:28.1]} 44.
Kh3 {[%clk 0:00:35.9]} 44... Qxf1+ {[%clk 0:00:28.3]} 45. Kg4 {[%clk 0:00:36.8]}
45... Qf3+ {[%clk 0:00:27.6]} 46. Kh4 {[%clk 0:00:37.7]} 46... Ng2# {[%clk
0:00:28.2]} 0-1

[Event "Early-Titled-Tuesday-Blitz-May-28-2024"]
[Site "Chess.com"]
[Date "2024.05.28"]
[Round "5"]
[White "ATM622"]
[Black "emeli_chess"]
[Result "1-0"]
[WhiteElo "2575"]
[BlackElo "2427"]
[TimeControl "180+1"]
[EndTime "8:55:54 PDT"]
[Termination "ATM622 won by resignation"]

1. d4 {[%clk 0:03:00.9]} 1... Nf6 {[%clk 0:02:58.9]} 2. c4 {[%clk 0:03:01]} 2...
e6 {[%clk 0:02:58.2]} 3. g3 {[%clk 0:03:01.4]} 3... d5 {[%clk 0:02:57.8]} 4. Bg2
{[%clk 0:03:01.6]} 4... dxc4 {[%clk 0:02:55.7]} 5. Nf3 {[%clk 0:03:01.7]} 5...
Nc6 {[%clk 0:02:52.4]} 6. Qa4 {[%clk 0:02:58.2]} 6... Bb4+ {[%clk 0:02:51]} 7.
Bd2 {[%clk 0:02:58.4]} 7... Bd6 {[%clk 0:02:51.1]} 8. Qxc4 {[%clk 0:02:57]} 8...
O-O {[%clk 0:02:50.8]} 9. O-O {[%clk 0:02:57.2]} 9... e5 {[%clk 0:02:51]} 10.
dxe5 {[%clk 0:02:49.8]} 10... Nxe5 {[%clk 0:02:50.9]} 11. Nxe5 {[%clk
0:02:50.2]} 11... Bxe5 {[%clk 0:02:51.2]} 12. Bc3 {[%clk 0:02:50.4]} 12... Bxc3
{[%clk 0:02:45.7]} 13. Nxc3 {[%clk 0:02:49.2]} 13... c6 {[%clk 0:02:45.6]} 14.
e4 {[%clk 0:02:42.4]} 14... Be6 {[%clk 0:02:36.8]} 15. Qe2 {[%clk 0:02:42.1]}
15... Qb6 {[%clk 0:02:25]} 16. Rfd1 {[%clk 0:02:20.3]} 16... Rfd8 {[%clk
0:02:23.1]} 17. e5 {[%clk 0:02:08.7]} 17... Nd5 {[%clk 0:02:14.5]} 18. Ne4
{[%clk 0:02:08.9]} 18... Rd7 {[%clk 0:01:57.2]} 19. Kh1 {[%clk 0:02:05.1]} 19...
Rad8 {[%clk 0:01:53.3]} 20. Nd6 {[%clk 0:01:57.3]} 20... f6 {[%clk 0:01:47.6]}
21. Nc4 {[%clk 0:01:53.5]} 21... Qc5 {[%clk 0:01:13.3]} 22. exf6 {[%clk
0:01:51.9]} 22... Nf4 {[%clk 0:00:48.4]} 23. Rxd7 {[%clk 0:01:45.8]} 23... Nxe2
{[%clk 0:00:46.2]} 24. Rxd8+ {[%clk 0:01:42.3]} 24... Kf7 {[%clk 0:00:45.8]} 25.
Nd6+ {[%clk 0:01:34.7]} 25... Kg6 {[%clk 0:00:40.8]} 26. Be4+ {[%clk 0:01:29.2]}
26... Kh5 {[%clk 0:00:31.8]} 27. Bf3+ {[%clk 0:00:57.1]} 27... Bg4 {[%clk
0:00:31.2]} 28. Bxg4+ {[%clk 0:00:48.3]} 28... Kxg4 {[%clk 0:00:31.1]} 29. f3+
{[%clk 0:00:46.3]} 29... Kh3 {[%clk 0:00:28.9]} 30. Ne4 {[%clk 0:00:38.7]} 30...
Qe3 {[%clk 0:00:24.9]} 31. Rf1 {[%clk 0:00:35.7]} 31... gxf6 {[%clk 0:00:13.4]}
32. Nf2+ {[%clk 0:00:34.5]} 1-0

[Event "Early-Titled-Tuesday-Blitz-May-28-2024"]
[Site "Chess.com"]
[Date "2024.05.28"]
[Round "5"]
[White "Pitomina"]
[Black "Sofia_Blokhin"]
[Result "1-0"]
[WhiteElo "2496"]
[BlackElo "2270"]
[TimeControl "180+1"]
[EndTime "8:55:59 PDT"]
[Termination "Pitomina won on time"]

1. g4 {[%clk 0:01:56.6]} 1... d5 {[%clk 0:02:57.4]} 2. Bg2 {[%clk 0:01:56.3]}
2... e6 {[%clk 0:02:53.5]} 3. h3 {[%clk 0:01:55.1]} 3... c6 {[%clk 0:02:51.8]}
4. d3 {[%clk 0:01:55.1]} 4... Bd6 {[%clk 0:02:50.9]} 5. Nd2 {[%clk 0:01:55.1]}
5... Nf6 {[%clk 0:02:48.4]} 6. e4 {[%clk 0:01:55.1]} 6... Qc7 {[%clk 0:02:28.9]}
7. Qe2 {[%clk 0:01:54]} 7... O-O {[%clk 0:02:17.2]} 8. Ngf3 {[%clk 0:01:51.9]}
8... e5 {[%clk 0:02:11.8]} 9. Nb3 {[%clk 0:01:51.5]} 9... Re8 {[%clk 0:02:06.7]}
10. Bg5 {[%clk 0:01:50.8]} 10... Nfd7 {[%clk 0:02:03.4]} 11. O-O {[%clk
0:01:50]} 11... f6 {[%clk 0:01:57.5]} 12. Bh4 {[%clk 0:01:49.8]} 12... Nf8
{[%clk 0:01:57.5]} 13. Bg3 {[%clk 0:01:49.3]} 13... Ne6 {[%clk 0:01:53.7]} 14.
Qe3 {[%clk 0:01:47.1]} 14... Nd7 {[%clk 0:01:41]} 15. Nh4 {[%clk 0:01:39.1]}
15... Nf4 {[%clk 0:01:30.7]} 16. Nf5 {[%clk 0:01:37.8]} 16... Nxg2 {[%clk
0:01:23.3]} 17. Kxg2 {[%clk 0:01:36.9]} 17... Bf8 {[%clk 0:01:22]} 18. exd5
{[%clk 0:01:35.9]} 18... cxd5 {[%clk 0:01:20.9]} 19. Qf3 {[%clk 0:01:36.8]}
19... Nb6 {[%clk 0:01:13]} 20. c3 {[%clk 0:01:36.8]} 20... g6 {[%clk 0:01:09.6]}
21. Ne3 {[%clk 0:01:35.3]} 21... Qd6 {[%clk 0:00:50.9]} 22. d4 {[%clk
0:01:33.9]} 22... Bg7 {[%clk 0:00:48]} 23. Rad1 {[%clk 0:01:33.7]} 23... Be6
{[%clk 0:00:37.3]} 24. Nc5 {[%clk 0:01:30.6]} 24... Bf7 {[%clk 0:00:31.3]} 25.
Nxb7 {[%clk 0:01:29.3]} 25... Qe7 {[%clk 0:00:29.8]} 26. Nc5 {[%clk 0:01:29.1]}
26... e4 {[%clk 0:00:24.6]} 27. Qf4 {[%clk 0:01:28.8]} 27... Rad8 {[%clk
0:00:16.8]} 28. Qc7 {[%clk 0:01:27.5]} 28... Qf8 {[%clk 0:00:13.4]} 29. Qxa7
{[%clk 0:01:26.5]} 29... Nc8 {[%clk 0:00:11.4]} 30. Qa6 {[%clk 0:01:24.3]} 30...
Nd6 {[%clk 0:00:09.9]} 31. Bxd6 {[%clk 0:01:19.1]} 31... Rxd6 {[%clk 0:00:10.1]}
32. Qe2 {[%clk 0:01:19.7]} 32... f5 {[%clk 0:00:10.4]} 33. f4 {[%clk 0:01:19.6]}
33... fxg4 {[%clk 0:00:09.8]} 34. Nxg4 {[%clk 0:01:19]} 34... h5 {[%clk
0:00:08.7]} 35. Ne5 {[%clk 0:01:19.2]} 35... Bxe5 {[%clk 0:00:09]} 36. fxe5
{[%clk 0:01:20.1]} 36... Rb6 {[%clk 0:00:08.9]} 37. Rf2 {[%clk 0:01:19.7]} 37...
Qe7 {[%clk 0:00:08.2]} 38. Rdf1 {[%clk 0:01:20.1]} 38... Be6 {[%clk 0:00:07.7]}
39. b4 {[%clk 0:01:20.5]} 39... g5 {[%clk 0:00:04.9]} 40. Qe3 {[%clk 0:01:20.6]}
40... g4 {[%clk 0:00:04.6]} 41. Rf6 {[%clk 0:01:20.5]} 41... gxh3+ {[%clk
0:00:04]} 42. Kh2 {[%clk 0:01:21.1]} 42... Kh8 {[%clk 0:00:03]} 43. Qh6+ {[%clk
0:01:20.4]} 43... Qh7 {[%clk 0:00:02.3]} 44. Rf8+ {[%clk 0:01:20]} 44... Rxf8
{[%clk 0:00:01.8]} 45. Rxf8+ {[%clk 0:01:20.9]} 45... Bg8 {[%clk 0:00:02.2]} 46.
Qxb6 {[%clk 0:01:19.2]} 46... Qg7 {[%clk 0:00:01]} 47. Qf6 {[%clk 0:01:18.9]}
47... h4 {[%clk 0:00:00.7]} 48. Qxg7+ {[%clk 0:01:18.9]} 48... Kxg7 {[%clk
0:00:01.2]} 49. Rf4 {[%clk 0:01:19]} 1-0

[Event "Early-Titled-Tuesday-Blitz-May-28-2024"]
[Site "Chess.com"]
[Date "2024.05.28"]
[Round "5"]
[White "Eloist"]
[Black "Shuvalov"]
[Result "0-1"]
[WhiteElo "2431"]
[BlackElo "2583"]
[TimeControl "180+1"]
[EndTime "8:56:00 PDT"]
[Termination "Shuvalov won by resignation"]

1. e4 {[%clk 0:03:00.9]} 1... e6 {[%clk 0:02:59.6]} 2. d4 {[%clk 0:02:59.7]}
2... d5 {[%clk 0:02:59.8]} 3. Nd2 {[%clk 0:02:59.8]} 3... c5 {[%clk 0:02:59.5]}
4. exd5 {[%clk 0:02:59.3]} 4... exd5 {[%clk 0:02:58.6]} 5. Ngf3 {[%clk
0:02:58.2]} 5... Nc6 {[%clk 0:02:58.4]} 6. Bb5 {[%clk 0:02:57.5]} 6... Qe7+
{[%clk 0:02:58.4]} 7. Qe2 {[%clk 0:02:56.6]} 7... Qxe2+ {[%clk 0:02:58.3]} 8.
Kxe2 {[%clk 0:02:53.9]} 8... a6 {[%clk 0:02:58.3]} 9. Bxc6+ {[%clk 0:02:53.3]}
9... bxc6 {[%clk 0:02:59.2]} 10. Re1 {[%clk 0:02:49.4]} 10... f6 {[%clk
0:02:58.7]} 11. Kf1+ {[%clk 0:02:47.4]} 11... Kf7 {[%clk 0:02:58.7]} 12. dxc5
{[%clk 0:02:44.5]} 12... Bxc5 {[%clk 0:02:58.3]} 13. Nb3 {[%clk 0:02:44.6]}
13... Bd6 {[%clk 0:02:57.9]} 14. Be3 {[%clk 0:02:42.8]} 14... Rb8 {[%clk
0:02:57.6]} 15. Rab1 {[%clk 0:02:39.6]} 15... Bg4 {[%clk 0:02:51.6]} 16. Nfd4
{[%clk 0:02:31]} 16... Bd7 {[%clk 0:02:45]} 17. Nf3 {[%clk 0:02:09.8]} 17... Bg4
{[%clk 0:02:43.4]} 18. Nfd4 {[%clk 0:02:09]} 18... Ne7 {[%clk 0:02:41.5]} 19. h3
{[%clk 0:02:04.8]} 19... Bd7 {[%clk 0:02:38.3]} 20. Nf3 {[%clk 0:02:03.9]} 20...
Nf5 {[%clk 0:02:00.5]} 21. Bc5 {[%clk 0:02:02.1]} 21... Rhe8 {[%clk 0:01:29.6]}
22. Bxd6 {[%clk 0:01:55.1]} 22... Nxd6 {[%clk 0:01:30.5]} 23. Nc5 {[%clk
0:01:53.9]} 23... Rxe1+ {[%clk 0:01:25.3]} 24. Kxe1 {[%clk 0:01:44.1]} 24... Bc8
{[%clk 0:00:56.9]} 25. Nd4 {[%clk 0:01:42.3]} 25... Rb6 {[%clk 0:00:52.4]} 26.
c3 {[%clk 0:01:20.7]} 26... a5 {[%clk 0:00:50.5]} 27. Na4 {[%clk 0:01:17]} 27...
Ra6 {[%clk 0:00:45.7]} 28. Nc5 {[%clk 0:01:11.2]} 28... Rb6 {[%clk 0:00:45.7]}
29. Na4 {[%clk 0:01:07.5]} 29... Ra6 {[%clk 0:00:46]} 30. Kd2 {[%clk 0:01:00.1]}
30... Ne4+ {[%clk 0:00:42.4]} 31. Ke3 {[%clk 0:00:57.9]} 31... c5 {[%clk
0:00:42.4]} 32. Nb3 {[%clk 0:00:53]} 32... Re6 {[%clk 0:00:37.6]} 33. Rc1 {[%clk
0:00:04.7]} 33... Nxc3+ {[%clk 0:00:33]} 34. Kd2 {[%clk 0:00:03.5]} 34... Nxa4
{[%clk 0:00:33]} 0-1